[Event "Juniorallsvenskan 2019, Division 1 and 2"]
[Site "Molnlycke kulturhus, Biblioteksgatan 2, Molnlycke, Sweden"]
[Date "2019.11.23"]
[Round "3.19"]
[White "Rosenthal, Emanuel"]
[Black "Fakhr Eldin, Majed"]
[Result "1-0"]
[TimeControl "90 minutes + 30 seconds per move from move one"]
[WhiteFideId "1738852"]
[BlackFideId "1744054"]
[WhiteElo "1703"]
[BlackElo "1571"]

1. g3 {[%clk 01:29:53]} {[%emt 00:01:07]} d5 {[%clk 01:29:22]} {[%emt
00:01:38]} 2. Nf3 {[%clk 01:30:08]} {[%emt 00:00:15]} Nf6 {[%clk 01:28:09]}
{[%emt 00:01:44]} 3. Bg2 {[%clk 01:30:24]} {[%emt 00:00:14]} Bf5 {[%clk
01:28:00]} {[%emt 00:00:38]} 4. d3 {[%clk 01:29:32]} {[%emt 00:01:22]} c6
{[%clk 01:23:08]} {[%emt 00:05:23]} 5. O-O {[%clk 01:26:23]} {[%emt 00:03:38]}
e6 {[%clk 01:19:27]} {[%emt 00:04:12]} 6. c4 {[%clk 01:23:41]} {[%emt
00:03:12]} Be7 {[%clk 01:13:37]} {[%emt 00:06:20]} 7. Nbd2 {[%clk 01:17:29]}
{[%emt 00:06:42]} O-O {[%clk 01:11:05]} {[%emt 00:03:01]} 8. Nh4 {[%clk
01:16:34]} {[%emt 00:01:24]} Bg4 {[%clk 01:06:29]} {[%emt 00:05:07]} 9. f3
{[%clk 01:13:40]} {[%emt 00:03:25]} Bh5 {[%clk 01:06:42]} {[%emt 00:00:16]} 10.
Bh3 {[%clk 01:10:45]} {[%emt 00:03:25]} Nfd7 {[%clk 00:58:27]} {[%emt
00:08:46]} 11. Ng2 {[%clk 01:10:38]} {[%emt 00:00:37]} Nc5 {[%clk 00:55:54]}
{[%emt 00:03:02]} 12. Nf4 {[%clk 01:06:45]} {[%emt 00:04:23]} Bg6 {[%clk
00:53:40]} {[%emt 00:02:43]} 13. Nxg6 {[%clk 01:02:48]} {[%emt 00:04:27]} hxg6
{[%clk 00:53:28]} {[%emt 00:00:42]} 14. b4 {[%clk 00:59:23]} {[%emt 00:03:56]}
dxc4 {[%clk 00:44:19]} {[%emt 00:09:39]} 15. Nxc4 {[%clk 00:54:47]} {[%emt
00:05:05]} b5 {[%clk 00:35:11]} {[%emt 00:09:36]} 16. bxc5 {[%clk 00:52:09]}
{[%emt 00:03:10]} bxc4 {[%clk 00:35:26]} {[%emt 00:00:13]} 17. d4 {[%clk
00:52:03]} {[%emt 00:00:39]} Bf6 {[%clk 00:31:26]} {[%emt 00:04:29]} 18. e3
{[%clk 00:48:03]} {[%emt 00:04:30]} e5 {[%clk 00:20:50]} {[%emt 00:11:06]} 19.
Bb2 {[%clk 00:46:45]} {[%emt 00:01:48]} Na6 {[%clk 00:20:35]} {[%emt 00:00:45]}
20. Qa4 {[%clk 00:44:53]} {[%emt 00:02:23]} Rb8 {[%clk 00:18:43]} {[%emt
00:02:22]} 21. Rab1 {[%clk 00:44:09]} {[%emt 00:01:13]} Nb4 {[%clk 00:18:40]}
{[%emt 00:00:33]} 22. dxe5 {[%clk 00:43:37]} {[%emt 00:00:56]} Be7 {[%clk
00:18:14]} {[%emt 00:01:00]} 23. Bd4 {[%clk 00:41:12]} {[%emt 00:02:57]} Qc7
{[%clk 00:17:14]} {[%emt 00:01:30]} 24. Rxb4 {[%clk 00:41:10]} {[%emt
00:00:32]} 1-0

[Event "Juniorallsvenskan 2019, Division 1 and 2"]
[Site "Molnlycke kulturhus, Biblioteksgatan 2, Molnlycke, Sweden"]
[Date "2019.11.23"]
[Round "3.20"]
[White "Mena, Markus"]
[Black "Fridman, Arvid"]
[Result "1/2-1/2"]
[TimeControl "90 minutes + 30 seconds per move from move one"]
[WhiteFideId "1745123"]
[BlackFideId "1758632"]
[WhiteElo "1405"]
[BlackElo "1596"]

1. e4 {[%clk 01:30:57]} {[%emt 00:00:03]} e5 {[%clk 01:30:56]} {[%emt
00:00:05]} 2. Nf3 {[%clk 01:31:20]} {[%emt 00:00:07]} Nf6 {[%clk 01:31:24]}
{[%emt 00:00:02]} 3. Nxe5 {[%clk 01:31:37]} {[%emt 00:00:12]} d6 {[%clk
01:31:48]} {[%emt 00:00:07]} 4. Nf3 {[%clk 01:31:44]} {[%emt 00:00:23]} Nxe4
{[%clk 01:32:12]} {[%emt 00:00:05]} 5. Qe2 {[%emt 00:04:16]} Qe7 {[%clk
01:32:12]} {[%emt 00:00:29]} 6. d3 {[%clk 01:19:31]} {[%emt 00:08:59]} Nf6
{[%clk 01:32:28]} {[%emt 00:00:13]} 7. Qxe7+ {[%clk 01:16:55]} {[%emt
00:03:07]} Bxe7 {[%clk 01:32:55]} {[%emt 00:00:03]} 8. Be2 {[%clk 01:16:21]}
{[%emt 00:01:04]} Nc6 {[%clk 01:32:09]} {[%emt 00:01:16]} 9. Nc3 {[%clk
01:13:38]} {[%emt 00:03:13]} O-O {[%clk 01:31:32]} {[%emt 00:01:06]} 10. O-O
{[%clk 01:13:45]} {[%emt 00:00:24]} Bg4 {[%clk 01:30:27]} {[%emt 00:01:34]} 11.
Bf4 {[%clk 01:10:44]} {[%emt 00:03:31]} Rfe8 {[%clk 01:29:38]} {[%emt
00:01:19]} 12. Rfe1 {[%clk 01:10:59]} {[%emt 00:00:14]} Bf8 {[%clk 01:28:31]}
{[%emt 00:01:38]} 13. h3 {[%clk 01:09:33]} {[%emt 00:01:56]} Bh5 {[%clk
01:28:47]} {[%emt 00:00:14]} 14. g4 {[%clk 00:58:39]} {[%emt 00:11:24]} Bg6
{[%clk 01:27:29]} {[%emt 00:01:48]} 15. Bf1 {[%clk 00:57:51]} {[%emt 00:01:18]}
Nb4 {[%clk 01:24:47]} {[%emt 00:03:11]} 16. Rec1 {[%clk 00:52:52]} {[%emt
00:05:30]} Nbd5 {[%clk 01:24:14]} {[%emt 00:01:03]} 17. Nxd5 {[%clk 00:51:22]}
{[%emt 00:02:00]} Nxd5 {[%clk 01:24:18]} {[%emt 00:00:26]} 18. Bg3 {[%clk
00:44:40]} {[%emt 00:07:12]} f6 {[%clk 01:22:44]} {[%emt 00:02:04]} 19. Bg2
{[%clk 00:41:24]} {[%emt 00:03:46]} Bf7 {[%clk 01:19:14]} {[%emt 00:04:01]} 20.
a3 {[%clk 00:39:06]} {[%emt 00:02:48]} Nb6 {[%clk 01:18:58]} {[%emt 00:00:45]}
21. Re1 {[%clk 00:38:04]} {[%emt 00:01:32]} c6 {[%clk 01:15:55]} {[%emt
00:03:34]} 22. Nd4 {[%clk 00:31:55]} {[%emt 00:06:38]} Na4 {[%clk 01:14:55]}
{[%emt 00:01:30]} 23. b3 {[%clk 00:30:30]} {[%emt 00:01:56]} Nb6 {[%clk
01:14:58]} {[%emt 00:00:26]} 24. Nf5 {[%clk 00:28:51]} {[%emt 00:02:08]} d5
{[%clk 01:13:00]} {[%emt 00:02:28]} 25. Nd6 {[%clk 00:27:07]} {[%emt 00:02:16]}
Bxd6 {[%clk 01:09:41]} {[%emt 00:03:49]} 26. Bxd6 {[%clk 00:27:21]} {[%emt
00:00:15]} Nd7 {[%clk 01:08:20]} {[%emt 00:01:51]} 27. d4 {[%clk 00:20:39]}
{[%emt 00:07:12]} Nf8 {[%clk 01:07:21]} {[%emt 00:01:29]} 28. Bxf8 {[%clk
00:18:39]} {[%emt 00:02:30]} Kxf8 {[%clk 01:07:41]} {[%emt 00:00:11]} 29. Kf1
{[%clk 00:17:29]} {[%emt 00:01:40]} Be6 {[%clk 01:07:45]} {[%emt 00:00:25]} 30.
Re3 {[%clk 00:16:10]} {[%emt 00:01:49]} Re7 {[%clk 01:07:13]} {[%emt 00:01:02]}
31. Rae1 {[%clk 00:16:00]} {[%emt 00:00:39]} Rae8 {[%clk 01:07:37]} {[%emt
00:00:07]} 32. c3 {[%clk 00:12:48]} {[%emt 00:03:42]} Kf7 {[%clk 01:07:05]}
{[%emt 00:01:02]} 33. b4 {[%clk 00:12:37]} {[%emt 00:00:41]} h5 {[%clk
01:06:30]} {[%emt 00:01:05]} 34. gxh5 {[%clk 00:09:40]} {[%emt 00:03:27]} Rh8
{[%clk 01:06:52]} {[%emt 00:00:08]} 35. Kg1 {[%clk 00:07:43]} {[%emt 00:02:27]}
Rxh5 {[%clk 01:06:19]} {[%emt 00:01:03]} 36. Kh2 {[%clk 00:05:38]} {[%emt
00:02:35]} g5 {[%clk 01:06:32]} {[%emt 00:00:17]} 37. f3 {[%clk 00:03:03]}
{[%emt 00:03:06]} f5 {[%clk 01:05:10]} {[%emt 00:01:52]} 38. a4 {[%clk
00:02:38]} {[%emt 00:00:54]} g4 {[%clk 01:04:37]} {[%emt 00:01:03]} 39. fxg4
{[%clk 00:02:33]} {[%emt 00:00:35]} fxg4 {[%clk 01:05:05]} {[%emt 00:00:02]} 40.
Rf1+ {[%clk 00:02:32]} {[%emt 00:00:31]} Kg6 {[%clk 01:04:29]} {[%emt
00:01:07]} 41. Rg3 {[%clk 00:02:21]} {[%emt 00:00:41]} Bf5 {[%clk 01:02:00]}
{[%emt 00:02:58]} 42. Kg1 {[%clk 00:02:19]} {[%emt 00:00:32]} Kg5 {[%clk
01:00:35]} {[%emt 00:01:55]} 43. hxg4 {[%clk 00:02:14]} {[%emt 00:00:35]} Bxg4
{[%clk 01:00:32]} {[%emt 00:00:34]} 44. Bf3 {[%clk 00:01:31]} {[%emt 00:01:13]}
Rh4 {[%clk 01:00:48]} {[%emt 00:00:14]} 45. Rxg4+ {[%clk 00:00:57]} {[%emt
00:01:03]} Rxg4+ {[%clk 01:01:17]} {[%emt 00:00:02]} 46. Bxg4 {[%clk 00:01:17]}
{[%emt 00:00:10]} Kxg4 {[%clk 01:01:38]} {[%emt 00:00:09]} 47. Rf8 {[%clk
00:00:40]} {[%emt 00:01:07]} Kg3 {[%clk 01:00:58]} {[%emt 00:01:10]} 48. Rg8+
{[%clk 00:00:40]} {[%emt 00:00:30]} Kf3 {[%clk 01:01:08]} {[%emt 00:00:20]} 49.
Rf8+ {[%clk 00:00:35]} {[%emt 00:00:36]} Ke3 {[%clk 01:01:30]} {[%emt
00:00:08]} 50. Rg8 {[%clk 00:00:36]} {[%emt 00:00:29]} Kd3 {[%clk 01:00:54]}
{[%emt 00:01:06]} 51. Rg3+ {[%clk 00:00:55]} {[%emt 00:00:11]} Kc4 {[%clk
01:01:00]} {[%emt 00:00:24]} 52. Kf2 {[%clk 00:00:46]} {[%emt 00:00:39]} Kb3
{[%clk 01:00:43]} {[%emt 00:00:47]} 53. a5 {[%clk 00:01:08]} {[%emt 00:00:07]}
Kc4 {[%clk 01:01:01]} {[%emt 00:00:11]} 54. Rf3 {[%clk 00:00:38]} {[%emt
00:01:00]} Kb5 {[%clk 00:59:21]} {[%emt 00:02:10]} 55. Rf4 {[%clk 00:00:33]}
{[%emt 00:00:35]} b6 {[%clk 00:58:59]} {[%emt 00:00:52]} 56. axb6 {[%clk
00:00:51]} {[%emt 00:00:12]} Kxb6 {[%clk 00:59:27]} {[%emt 00:00:02]} 57. Rf3
{[%clk 00:00:43]} {[%emt 00:00:37]} Kb5 {[%clk 00:58:47]} {[%emt 00:01:11]} 58.
Rg3 {[%clk 00:00:39]} {[%emt 00:00:34]} Re6 {[%clk 00:58:41]} {[%emt 00:00:36]}
59. Rf3 {[%clk 00:00:39]} {[%emt 00:00:31]} a5 {[%clk 00:58:36]} {[%emt
00:00:35]} 60. bxa5 {[%clk 00:01:00]} {[%emt 00:00:08]} Kxa5 {[%clk 00:58:54]}
{[%emt 00:00:13]} 61. Rg3 {[%clk 00:00:35]} {[%emt 00:00:55]} Kb5 {[%clk
00:59:07]} {[%emt 00:00:16]} 62. Rf3 {[%clk 00:00:32]} {[%emt 00:00:34]} Kc4
{[%clk 00:58:42]} {[%emt 00:00:56]} 63. Rg3 {[%clk 00:00:32]} {[%emt 00:00:30]}
Re7 {[%clk 00:57:57]} {[%emt 00:01:14]} 64. Rf3 {[%clk 00:00:37]} {[%emt
00:00:24]} Ra7 {[%clk 00:58:09]} {[%emt 00:00:19]} 65. Ke2 {[%clk 00:00:45]}
{[%emt 00:00:22]} Ra2+ {[%clk 00:57:40]} {[%emt 00:00:58]} 66. Kd1 {[%clk
00:00:43]} {[%emt 00:00:33]} Kb3 {[%clk 00:57:24]} {[%emt 00:00:46]} 67. Ke1
{[%clk 00:00:31]} {[%emt 00:00:43]} Rc2 {[%clk 00:57:29]} {[%emt 00:00:24]} 68.
Kd1 {[%clk 00:00:32]} {[%emt 00:00:29]} Rxc3 {[%clk 00:57:48]} {[%emt
00:00:12]} 69. Rf6 {[%clk 00:00:32]} {[%emt 00:00:30]} Rc4 {[%clk 00:56:55]}
{[%emt 00:01:22]} 70. Ke2 {[%clk 00:00:42]} {[%emt 00:00:20]} Kb4 {[%clk
00:54:38]} {[%emt 00:02:47]} 71. Ke3 {[%clk 00:00:47]} {[%emt 00:00:25]} Kb5
{[%clk 00:54:11]} {[%emt 00:00:57]} 72. Kd3 {[%clk 00:00:35]} {[%emt 00:00:42]}
Rc1 {[%clk 00:54:08]} {[%emt 00:00:33]} 73. Rd6 {[%clk 00:00:37]} {[%emt
00:00:28]} Rh1 {[%clk 00:53:51]} {[%emt 00:00:47]} 74. Kc3 {[%clk 00:00:36]}
{[%emt 00:00:31]} Rh3+ {[%clk 00:53:58]} {[%emt 00:00:24]} 75. Kd2 {[%clk
00:00:37]} {[%emt 00:00:28]} Rf3 {[%clk 00:53:02]} {[%emt 00:01:26]} 76. Ke2
{[%clk 00:00:37]} {[%emt 00:00:30]} Rg3 {[%clk 00:53:15]} {[%emt 00:00:17]} 77.
Kd2 {[%clk 00:00:41]} {[%emt 00:00:26]} Kc4 {[%clk 00:52:35]} {[%emt 00:01:10]}
78. Rxc6+ {[%clk 00:00:32]} {[%emt 00:00:39]} Kxd4 {[%clk 00:52:50]} {[%emt
00:00:15]} 79. Rb6 {[%clk 00:00:31]} {[%emt 00:00:31]} Rg2+ {[%clk 00:52:31]}
{[%emt 00:00:49]} 80. Kc1 {[%clk 00:00:40]} {[%emt 00:00:21]} 1/2-1/2

[Event "Juniorallsvenskan 2019, Division 1 and 2"]
[Site "Molnlycke kulturhus, Biblioteksgatan 2, Molnlycke, Sweden"]
[Date "2019.11.23"]
[Round "3.21"]
[White "Morling, Joakim"]
[Black "Ytterberg, Felix"]
[Result "1-0"]
[TimeControl "90 minutes + 30 seconds per move from move one"]
[WhiteFideId "1715933"]
[BlackFideId "1740687"]
[WhiteElo "2090"]
[BlackElo "2005"]

1. d4 {[%clk 01:30:51]} {[%emt 00:00:08]} Nf6 {[%clk 01:30:04]} {[%emt
00:00:56]} 2. Nf3 {[%clk 01:31:05]} {[%emt 00:00:16]} d5 {[%clk 01:30:20]}
{[%emt 00:00:13]} 3. c4 {[%clk 01:31:30]} {[%emt 00:00:06]} e6 {[%clk
01:30:35]} {[%emt 00:00:15]} 4. cxd5 {[%clk 01:31:54]} {[%emt 00:00:06]} exd5
{[%clk 01:30:49]} {[%emt 00:00:15]} 5. Bg5 {[%clk 01:32:07]} {[%emt 00:00:19]}
Be7 {[%clk 01:30:31]} {[%emt 00:00:47]} 6. Nc3 {[%clk 01:31:44]} {[%emt
00:00:53]} O-O {[%clk 01:30:35]} {[%emt 00:00:24]} 7. e3 {[%clk 01:32:07]}
{[%emt 00:00:09]} c6 {[%clk 01:30:53]} {[%emt 00:00:12]} 8. Bd3 {[%clk
01:32:31]} {[%emt 00:00:07]} h6 {[%clk 01:31:13]} {[%emt 00:00:08]} 9. Bh4
{[%clk 01:32:56]} {[%emt 00:00:06]} Nbd7 {[%clk 01:31:25]} {[%emt 00:00:15]} 10.
O-O {[%clk 01:33:05]} {[%emt 00:00:24]} Nh5 {[%clk 01:31:40]} {[%emt 00:00:14]}
11. Bxe7 {[%clk 01:33:12]} {[%emt 00:00:24]} Qxe7 {[%clk 01:31:29]} {[%emt
00:00:38]} 12. Qc2 {[%clk 01:33:23]} {[%emt 00:00:22]} a5 {[%clk 01:29:51]}
{[%emt 00:02:08]} 13. h3 {[%clk 01:26:42]} {[%emt 00:07:11]} Nb6 {[%clk
00:29:47]} {[%emt 01:00:34]} 14. a3 {[%clk 01:20:30]} {[%emt 00:06:43]} f5
{[%clk 00:29:35]} {[%emt 00:00:40]} 15. Ne5 {[%clk 01:18:39]} {[%emt 00:02:21]}
Qd6 {[%clk 00:29:10]} {[%emt 00:00:56]} 16. Rab1 {[%clk 01:12:50]} {[%emt
00:06:19]} a4 {[%clk 00:26:58]} {[%emt 00:02:42]} 17. Qd1 {[%clk 01:11:34]}
{[%emt 00:01:46]} g6 {[%clk 00:26:45]} {[%emt 00:00:43]} 18. Bc2 {[%clk
01:11:32]} {[%emt 00:00:32]} Rf6 {[%clk 00:25:33]} {[%emt 00:01:41]} 19. Nxa4
{[%clk 01:10:54]} {[%emt 00:01:08]} Nxa4 {[%clk 00:26:01]} {[%emt 00:00:02]} 20.
Bxa4 {[%clk 01:11:16]} {[%emt 00:00:09]} f4 {[%clk 00:26:05]} {[%emt 00:00:26]}
21. Bc2 {[%clk 01:05:23]} {[%emt 00:06:23]} Bf5 {[%clk 00:25:08]} {[%emt
00:01:26]} 22. Ng4 {[%clk 00:58:38]} {[%emt 00:07:16]} Bxg4 {[%clk 00:20:27]}
{[%emt 00:05:11]} 23. Qxg4 {[%clk 00:56:20]} {[%emt 00:02:48]} Raf8 {[%clk
00:19:38]} {[%emt 00:01:19]} 24. exf4 {[%clk 00:51:54]} {[%emt 00:04:56]} Nxf4
{[%clk 00:19:37]} {[%emt 00:00:27]} 25. Rbe1 {[%clk 00:52:00]} {[%emt
00:00:28]} c5 {[%clk 00:19:17]} {[%emt 00:00:50]} 26. dxc5 {[%clk 00:40:31]}
{[%emt 00:11:59]} Qxc5 {[%clk 00:18:45]} {[%emt 00:01:02]} 27. Bb1 {[%clk
00:40:52]} {[%emt 00:00:09]} d4 {[%clk 00:18:36]} {[%emt 00:00:38]} 28. Qd7
{[%clk 00:38:38]} {[%emt 00:02:45]} R6f7 {[%clk 00:18:07]} {[%emt 00:00:58]} 29.
Ba2 {[%clk 00:38:53]} {[%emt 00:00:16]} Kg7 {[%clk 00:17:29]} {[%emt 00:01:09]}
30. Bxf7 {[%clk 00:38:30]} {[%emt 00:00:52]} Rxf7 {[%clk 00:17:29]} {[%emt
00:00:28]} 31. Qe8 {[%clk 00:31:50]} {[%emt 00:07:12]} Nd3 {[%clk 00:16:58]}
{[%emt 00:01:00]} 32. Re4 {[%clk 00:30:45]} {[%emt 00:01:36]} b5 {[%clk
00:15:06]} {[%emt 00:02:22]} 33. b4 {[%clk 00:28:22]} {[%emt 00:02:54]} Qa7
{[%clk 00:14:58]} {[%emt 00:00:37]} 34. Qxb5 {[%clk 00:22:57]} {[%emt
00:05:55]} Qxa3 {[%clk 00:14:24]} {[%emt 00:01:05]} 35. Rxd4 {[%clk 00:22:55]}
{[%emt 00:00:31]} Nc1 {[%clk 00:13:40]} {[%emt 00:01:12]} 36. Qe5+ {[%clk
00:23:00]} {[%emt 00:00:27]} Kh7 {[%clk 00:13:55]} {[%emt 00:00:15]} 37. Rd8
{[%clk 00:23:13]} {[%emt 00:00:17]} Rg7 {[%clk 00:00:31]} {[%emt 00:13:54]} 38.
Qe8 {[%clk 00:22:57]} {[%emt 00:00:45]} g5 {[%clk 00:00:31]} {[%emt 00:00:31]}
39. Qh8+ {[%clk 00:23:10]} {[%emt 00:00:16]} Kg6 {[%clk 00:00:45]} {[%emt
00:00:17]} 40. Rd6+ {[%clk 00:23:31]} {[%emt 00:00:09]} Kf5 {[%clk 00:00:31]}
{[%emt 00:00:44]} 41. Qxg7 {[%clk 00:23:27]} {[%emt 00:00:33]} Ne2+ {[%clk
00:00:32]} {[%emt 00:00:31]} 42. Kh1 {[%clk 00:23:48]} {[%emt 00:00:08]} Nf4
{[%clk 00:00:32]} {[%emt 00:00:30]} 43. Qf6+ {[%clk 00:24:02]} {[%emt
00:00:15]} 1-0

[Event "Juniorallsvenskan 2019, Division 1 and 2"]
[Site "Molnlycke kulturhus, Biblioteksgatan 2, Molnlycke, Sweden"]
[Date "2019.11.23"]
[Round "3.22"]
[White "Ivarsson, Sebastian"]
[Black "Ekberg, Karl"]
[Result "1-0"]
[TimeControl "90 minutes + 30 seconds per move from move one"]
[WhiteFideId "1738593"]
[BlackFideId "1726277"]
[WhiteElo "1969"]
[BlackElo "1867"]

1. d4 {[%clk 01:30:57]} {[%emt 00:00:03]} d5 {[%clk 01:30:53]} {[%emt
00:00:07]} 2. c4 {[%clk 01:31:19]} {[%emt 00:00:09]} c6 {[%clk 01:31:15]}
{[%emt 00:00:07]} 3. Nf3 {[%clk 01:31:35]} {[%emt 00:00:14]} Nf6 {[%clk
01:31:32]} {[%emt 00:00:13]} 4. Nc3 {[%clk 01:32:00]} {[%emt 00:00:04]} e6
{[%clk 01:31:50]} {[%emt 00:00:13]} 5. Bg5 {[%clk 01:32:23]} {[%emt 00:00:06]}
h6 {[%clk 01:32:10]} {[%emt 00:00:12]} 6. Bh4 {[%clk 01:32:46]} {[%emt
00:00:06]} dxc4 {[%clk 01:32:30]} {[%emt 00:00:11]} 7. e4 {[%clk 01:32:34]}
{[%emt 00:00:41]} g5 {[%clk 01:32:38]} {[%emt 00:00:22]} 8. Bg3 {[%clk
01:32:49]} {[%emt 00:00:16]} b5 {[%clk 01:33:01]} {[%emt 00:00:07]} 9. e5
{[%clk 01:33:13]} {[%emt 00:00:05]} Nd5 {[%clk 01:25:57]} {[%emt 00:07:34]} 10.
Nd2 {[%clk 01:30:20]} {[%emt 00:03:23]} Nxc3 {[%clk 00:59:37]} {[%emt
00:26:50]} 11. bxc3 {[%clk 01:30:30]} {[%emt 00:00:20]} Bb7 {[%clk 00:59:52]}
{[%emt 00:00:16]} 12. Ne4 {[%clk 01:27:58]} {[%emt 00:03:01]} Be7 {[%clk
00:59:40]} {[%emt 00:00:41]} 13. Be2 {[%clk 01:25:18]} {[%emt 00:03:11]} Nd7
{[%clk 00:55:46]} {[%emt 00:04:24]} 14. Bh5 {[%clk 01:22:50]} {[%emt 00:02:59]}
Nf8 {[%clk 00:51:32]} {[%emt 00:04:45]} 15. Qf3 {[%clk 01:14:36]} {[%emt
00:08:44]} Ng6 {[%clk 00:48:41]} {[%emt 00:03:20]} 16. h4 {[%clk 00:52:49]}
{[%emt 00:22:18]} Qd7 {[%clk 00:20:58]} {[%emt 00:28:13]} 17. Bxg6 {[%clk
00:37:02]} {[%emt 00:16:17]} fxg6 {[%clk 00:20:57]} {[%emt 00:00:31]} 18. Nf6+
{[%clk 00:37:14]} {[%emt 00:00:17]} Bxf6 {[%clk 00:21:19]} {[%emt 00:00:08]} 19.
Qxf6 {[%clk 00:37:36]} {[%emt 00:00:09]} Rg8 {[%clk 00:12:27]} {[%emt
00:09:22]} 20. hxg5 {[%clk 00:37:24]} {[%emt 00:00:42]} h5 {[%clk 00:12:52]}
{[%emt 00:00:05]} 21. Rh4 {[%clk 00:30:19]} {[%emt 00:07:35]} Qe7 {[%clk
00:11:56]} {[%emt 00:01:26]} 22. Rf4 {[%clk 00:30:05]} {[%emt 00:00:43]} Kd7
{[%clk 00:12:03]} {[%emt 00:00:23]} 23. a4 {[%clk 00:28:16]} {[%emt 00:02:19]}
a6 {[%clk 00:08:42]} {[%emt 00:03:51]} 24. f3 {[%clk 00:26:05]} {[%emt
00:02:42]} Raf8 {[%clk 00:08:13]} {[%emt 00:00:59]} 25. Qxe7+ {[%clk 00:26:16]}
{[%emt 00:00:19]} Kxe7 {[%clk 00:08:35]} {[%emt 00:00:08]} 26. Rf6 {[%clk
00:26:06]} {[%emt 00:00:39]} Ra8 {[%clk 00:08:36]} {[%emt 00:00:28]} 27. Bf2
{[%clk 00:25:14]} {[%emt 00:01:23]} Bc8 {[%clk 00:07:21]} {[%emt 00:01:45]} 28.
d5 {[%clk 00:23:57]} {[%emt 00:01:47]} cxd5 {[%clk 00:02:42]} {[%emt 00:05:10]}
29. axb5 {[%clk 00:23:48]} {[%emt 00:00:38]} Bb7 {[%clk 00:01:01]} {[%emt
00:02:11]} 30. Bc5+ {[%clk 00:22:22]} {[%emt 00:01:56]} Kd7 {[%clk 00:01:24]}
{[%emt 00:00:07]} 31. Rf7+ {[%clk 00:22:35]} {[%emt 00:00:18]} Kc8 {[%clk
00:01:48]} {[%emt 00:00:05]} 32. b6 {[%clk 00:21:57]} {[%emt 00:01:09]} Rd8
{[%emt 00:01:48]} 1-0